bitfinex-derivatives/quotes_ETHF0:USTF0_20250417
["timestamp","ask_amount","ask_price","bid_price","bid_amount"]
[1744909685091,3.1982,1607.3,1607.2,1.24462]
[1744909685387,3.2078,1607.4,1607.3,1.24454]
[1744909685988,6.2839,1607.6,1607.5,1.24439]
[1744909686190,6.2839,1607.6,1607.5,6.14139]
[1744909686597,3.2078,1608.3,1607.7,1.24423]
[1744909686778,3.2078,1608.1,1608.0,1.24393]
[1744909687086,5.9424,1608.2,1607.8,7.9668]
[1744909687282,5.9424,1608.2,1607.9,0.00935541]
[1744909687491,3.2078,1608.1,1608.0,1.244]
[1744909687689,6.233,1608.1,1608.0,1.244]
[1744909688493,3.0252,1608.1,1608.0,4.3138]
[1744909689392,7.45821,1608.7,1608.2,1.24385]
[1744909689583,3.0252,1608.6,1608.5,1.24358]
[1744909689786,3.0252,1608.6,1608.5,1.24361]
[1744909690291,3.1078,1608.8,1608.7,1.24346]
[1744909690490,3.1078,1608.8,1608.7,6.13846]
[1744909691086,3.2078,1609.0,1608.9,1.2433]
[1744909691285,1.24334,1608.9,1608.6,3.21712575]
[1744909691488,3.2078,1608.8,1608.7,1.24346]
[1744909691688,3.2078,1608.8,1608.6,0.00932575]
[1744909691689,1.24346,1608.7,1608.6,0.00932575]
[1744909691888,7.44116,1608.7,1608.6,0.00932575]
[1744909692190,6.1977,1608.7,1608.6,0.00932575]
[1744909692391,6.1977,1608.7,1608.6,1.25286575]
[1744909693299,3.1078,1608.7,1608.6,6.14586575]
[1744909693693,3.1078,1608.7,1608.6,9.03896575]
[1744909694195,7.54095,1609.0,1608.8,1.24335]
[1744909694396,3.0183,1608.9,1608.6,0.00932575]
[1744909694589,4.45126,1608.7,1608.6,0.00932575]
[1744909694895,3.2078,1608.7,1608.6,1.25286575]
[1744909695587,3.0183,1608.9,1608.8,1.24338]
[1744909695788,3.2078,1609.0,1608.9,1.2433]
[1744909696191,3.2078,1609.2,1609.1,1.24315]
[1744909696888,3.2078,1609.5,1609.2,3.1076]
[1744909697094,6.107,1609.5,1609.4,1.24286]
[1744909697590,6.107,1609.5,1609.4,4.11566]
[1744909698391,6.107,1609.5,1609.4,1.24292]
[1744909698794,2.8583,1609.8,1609.6,1.24271]
[1744909698795,4.10097,1609.8,1609.6,1.24271]
[1744909699000,3.2078,1609.9,1609.8,1.24261]
[1744909699196,7.39414,1610.1,1609.7,6.24682]
[1744909699502,9.25767,1610.1,1609.7,4.38276]
[1744909699703,1.24248,1610.0,1609.7,3.1401]
[1744909699902,3.2078,1609.9,1609.8,6.13356]
[1744909700102,2.9439,1610.0,1609.7,4.38272]
[1744909700304,2.9439,1610.0,1609.8,4.891]
[1744909700504,7.39419,1610.0,1609.8,4.891]
[1744909700703,1.24253,1609.9,1609.8,4.891]
[1744909700896,4.18643,1609.9,1609.8,4.883]
[1744909701399,1.24269,1609.7,1609.6,4.883]
[1744909701706,1.24276,1609.6,1609.5,0.00932575]
[1744909701897,4.25886,1609.6,1609.5,0.00932575]
[1744909702103,4.25886,1609.6,1609.5,4.89232575]
[1744909703911,4.25886,1609.6,1609.5,6.13516575]
[1744909704106,3.0161,1609.6,1609.5,6.13516575]
[1744909704303,3.0161,1609.6,1609.5,1.25216575]
[1744909704606,1.24304,1609.3,1609.2,1.24304]
[1744909704903,3.2078,1609.5,1609.0,7.99006]
[1744909705108,4.31194,1609.4,1609.2,1.24302]
[1744909705408,3.069,1609.4,1609.3,1.243]
[1744909706111,4.31192,1609.4,1609.3,1.243]
[1744909706711,3.069,1609.4,1609.3,1.243]
[1744909706911,4.31192,1609.4,1609.3,1.243]
[1744909707109,3.21702687,1609.5,1609.4,1.24292]
[1744909707309,1.243,1609.3,1609.2,6.13333575]
[1744909707810,3.21702687,1609.5,1609.2,4.89032575]
[1744909708005,3.21702687,1609.5,1609.4,1.24292]
[1744909708207,0.00922687,1609.5,1609.4,1.24292]
[1744909708415,6.3136,1610.2,1609.4,8.1073]
[1744909708710,1.24258,1609.9,1609.8,1.24256]
[1744909708915,4.45031,1610.0,1609.9,1.24253]
[1744909709106,1.24253,1609.9,1609.8,6.12354]
[1744909710320,4.45031,1610.0,1609.9,1.24253]
[1744909710915,4.45031,1610.0,1609.9,4.10563]
[1744909711215,1.24269,1609.8,1609.4,3.1073]
[1744909711413,1.24269,1609.7,1609.6,4.12893]
[1744909711611,4.45049,1609.7,1609.6,4.12893]
[1744909713519,1.243,1609.3,1609.2,1.25234575]
[1744909713815,7.3268,1609.3,1609.2,0.00932575]
[1744909714812,6.0838,1609.3,1609.2,1.25239575]
[1744909715114,3.2078,1609.3,1609.2,6.25239575]
[1744909715309,2.8855,1609.7,1609.6,1.24276]
[1744909715615,2.8855,1609.7,1609.2,8.21712575]
[1744909715616,1.24283,1609.6,1609.5,6.1228]
[1744909716012,2.8855,1609.7,1609.6,1.24276]
[1744909716218,4.12819,1609.7,1609.6,4.31236]
[1744909716814,4.12819,1609.7,1609.5,4.88]
[1744909716815,1.24276,1609.6,1609.5,4.88]
[1744909717117,1.24292,1609.4,1609.3,4.26283]
[1744909717417,1.243,1609.3,1609.2,4.46019575]
[1744909717711,7.4801,1609.3,1609.2,0.00932575]
[1744909717916,4.2723,1609.3,1609.2,0.00932575]
[1744909718117,4.2723,1609.3,1609.2,1.25239575]
[1744909718417,4.2723,1609.3,1609.2,0.00932575]
[1744909719409,7.2417,1609.3,1609.2,0.00932575]
[1744909719817,7.2417,1609.3,1609.2,1.25239575]
[1744909720209,7.2417,1609.3,1609.2,0.00932575]
[1744909720612,7.2417,1609.3,1609.2,1.25239575]
[1744909720911,7.2417,1609.3,1609.2,4.28699575]
[1744909721419,1.243,1609.3,1609.2,4.28699575]
[1744909721919,3.2078,1609.6,1609.5,1.24284]
[1744909722216,4.45056,1609.6,1609.5,6.12284]
[1744909722713,4.45056,1609.6,1609.5,4.88]
[1744909723311,3.2078,1609.6,1609.3,6.12293]
[1744909723613,4.45065,1609.6,1609.5,1.24284]
[1744909723816,3.2078,1609.6,1609.5,1.24284]
[1744909724112,3.2078,1609.9,1609.7,1.24265]
[1744909724310,3.2078,1609.9,1609.7,4.88]
[1744909724311,4.45038,1609.9,1609.7,4.88]
[1744909724520,4.45038,1609.9,1609.8,3.0529]
[1744909724704,7.47528,1609.9,1609.8,3.0529]
[1744909724910,3.2078,1609.9,1609.8,1.24261]
[1744909725109,3.2078,1609.9,1609.8,4.29551]
[1744909726917,2.8626,1610.2,1610.1,1.24238]
[1744909727114,4.1049,1610.2,1610.1,1.24238]
[1744909727317,6.0704,1610.2,1610.1,1.24238]
[1744909727515,3.2078,1610.2,1610.1,1.24238]
[1744909728215,3.2078,1610.5,1610.4,1.24215]
[1744909728406,4.44989,1610.5,1610.4,1.24215]
[1744909728610,3.2078,1610.5,1610.3,4.88932575]
[1744909728804,4.10475,1610.4,1610.3,6.13151575]
[1744909729017,4.10475,1610.4,1610.3,4.88932575]
[1744909729223,2.8626,1610.4,1610.3,6.13154575]
[1744909729424,4.10475,1610.4,1610.3,6.13154575]
[1744909729618,4.10475,1610.4,1610.3,4.88932575]
[1744909730221,1.24215,1610.4,1610.3,6.13154575]
[1744909730423,1.24215,1610.4,1610.3,4.88932575]
[1744909730620,4.24155,1610.4,1610.3,4.88932575]
[1744909730820,4.24155,1610.4,1610.3,6.13154575]
[1744909731117,4.24155,1610.4,1610.3,4.88932575]
[1744909731827,1.24215,1610.4,1610.3,6.13154575]
[1744909732524,1.24215,1610.4,1610.3,4.88932575]
[1744909732723,4.14185,1610.4,1610.3,4.88932575]
[1744909733623,4.14185,1610.4,1610.3,6.13154575]
[1744909734321,3.2078,1610.7,1610.4,1.24215]
[1744909734527,6.1075,1610.7,1610.6,1.24199]
[1744909734715,1.24205,1610.6,1610.5,1.242]
[1744909735524,6.1075,1610.7,1610.4,3.10535]
[1744909735726,4.44991,1610.5,1610.4,1.24206]
[1744909736125,3.2078,1610.5,1610.4,1.24206]
[1744909736622,4.44987,1610.5,1610.4,1.24206]
[1744909736822,9.21232,1610.7,1610.4,1.24206]
[1744909737023,3.2078,1610.5,1610.4,1.24206]
[1744909737225,1.24215,1610.4,1610.3,4.88432575]
[1744909737426,4.22785,1610.4,1610.3,6.12654575]
[1744909737625,7.43565,1610.4,1610.3,4.88432575]
[1744909738418,7.43565,1610.4,1610.3,6.12654575]
[1744909738619,7.43565,1610.4,1610.3,4.88432575]
[1744909739225,10.19955,1610.4,1610.3,4.88432575]
[1744909739432,10.19955,1610.4,1610.3,0.00932575]
[1744909740228,1.24245,1610.0,1609.9,8.12464086]
[1744909740525,3.2078,1610.0,1609.9,1.24253]
[1744909740726,1.24236,1610.2,1610.1,1.24234]
[1744909740920,3.2078,1610.3,1610.2,1.2423]
[1744909740921,4.45008,1610.3,1610.2,1.2423]
[1744909741525,3.2078,1610.3,1610.2,1.2423]
[1744909741728,4.45002,1610.3,1610.2,1.2423]
[1744909741924,3.2078,1610.3,1610.2,1.2423]
[1744909742121,0.00932575,1610.4,1610.3,1.24222]
[1744909742523,0.00932575,1610.4,1610.3,6.24222]
[1744909742822,3.2078,1610.7,1610.6,1.24199]
[1744909743018,4.44971,1610.7,1610.6,4.874]
[1744909743217,4.44971,1610.7,1610.6,6.11599]
[1744909743837,3.2078,1610.7,1610.6,6.11599]
[1744909744326,4.44971,1610.7,1610.6,4.874]
[1744909744530,7.36171,1610.7,1610.6,6.11599]
[1744909745031,7.36171,1610.7,1610.6,4.874]
[1744909745534,7.36171,1610.7,1610.6,6.11599]
[1744909745930,7.36171,1610.7,1610.6,1.24199]
[1744909746123,3.2078,1610.7,1610.6,1.24199]
[1744909746728,3.2078,1611.4,1610.6,5.0]
[1744909746928,3.2078,1611.6,1610.8,3.1046]
[1744909747130,2.912,1611.6,1611.4,1.24136]
[1744909747332,1.24122,1611.7,1611.5,1.24124]
[1744909747531,1.24138,1611.4,1611.3,8.0818]
[1744909747827,1.24145,1611.3,1611.2,4.874]
[1744909748724,1.24161,1611.1,1611.0,6.12400575]
[1744909748923,1.24161,1611.1,1611.0,9.01760575]
[1744909749134,1.24161,1611.1,1611.0,7.77592575]
[1744909749430,4.17699,1611.2,1611.0,7.77592575]
[1744909749632,6.0988,1611.5,1611.4,1.24138]
[1744909749835,4.4491,1611.5,1611.4,1.24138]
[1744909750337,1.24138,1611.4,1611.3,4.873]
[1744909750532,2.8969,1611.4,1611.0,0.00932575]
[1744909750732,1.24161,1611.1,1611.0,0.00932575]
[1744909751129,4.13849,1611.2,1611.0,1.25095575]
[1744909751330,2.8969,1611.2,1611.0,4.26425575]
[1744909751629,1.24161,1611.1,1611.0,3.02262575]
[1744909751825,4.44941,1611.1,1611.0,0.00932575]
[1744909752031,1.24161,1611.1,1611.0,0.00932575]
[1744909752232,3.2078,1611.1,1611.0,3.02262575]
[1744909752426,1.24151,1611.3,1611.2,1.24153]
[1744909752627,1.24151,1611.3,1611.1,6.11355]
[1744909752831,1.24145,1611.3,1611.2,4.25483]
[1744909753037,1.2414,1611.4,1611.3,1.24145]
[1744909753238,7.37817,1611.6,1611.4,1.24131]
[1744909753536,6.1369,1611.6,1611.2,1.24148]
[1744909753738,2.8648,1611.5,1611.3,4.2128]
[1744909753935,6.1369,1611.6,1611.4,4.872]
[1744909753936,4.44908,1611.6,1611.4,4.872]
[1744909754135,3.2078,1611.6,1611.5,1.2413]
[1744909754339,1.24112,1611.8,1611.7,1.24114]
[1744909754529,4.44883,1611.9,1611.7,4.872]
[1744909754840,4.44883,1611.9,1611.8,4.21247]
[1744909755135,1.24107,1611.8,1611.7,4.872]
[1744909755331,4.44885,1611.9,1611.8,1.24107]
[1744909755537,4.44885,1611.9,1611.8,4.21247]
[1744909755737,3.2078,1611.9,1611.8,4.21247]
[1744909756032,1.24092,1612.0,1611.9,1.24093]
[1744909756339,1.24074,1612.3,1611.9,6.07379]
[1744909756630,1.24091,1612.0,1611.9,7.8434]
[1744909756831,1.24091,1612.0,1611.9,2.9714]
[1744909757034,1.24099,1611.9,1611.8,0.00932575]
[1744909757742,9.00519,1611.9,1611.8,0.00932575]
[1744909757938,1.2413,1611.5,1611.4,2.7497]
[1744909758238,1.24134,1611.5,1611.3,1.24139]
[1744909758537,1.24134,1611.5,1611.4,2.7497]
[1744909758737,1.2413,1611.5,1611.4,2.7497]
[1744909759641,1.2413,1611.5,1611.4,3.99108]
[1744909759837,1.24138,1611.4,1611.3,0.00932575]
[1744909760039,7.22408,1611.4,1611.3,0.00932575]
[1744909763237,1.24176,1610.9,1610.8,7.7877]
[1744909763532,1.24176,1610.9,1610.8,11.93994]
[1744909763741,1.24176,1610.9,1610.8,10.6981]
[1744909764037,3.2078,1611.2,1611.0,1.24165]
[1744909764237,3.2078,1611.2,1611.1,1.24161]
[1744909764634,1.24152,1611.3,1611.2,1.24153]
[1744909764834,4.44932,1611.3,1611.2,4.15193]
[1744909765035,4.44932,1611.3,1611.2,2.9104]
[1744909765238,4.44932,1611.3,1611.2,4.15193]
[1744909765437,4.44932,1611.3,1611.2,2.9104]
[1744909766137,4.44932,1611.3,1611.2,4.15193]
[1744909766338,4.44932,1611.3,1611.2,2.9104]
[1744909766538,1.24153,1611.2,1611.1,4.869]
[1744909766840,4.20663,1611.2,1611.1,4.869]
[1744909767339,1.24161,1611.1,1611.0,4.14998]
[1744909768034,1.24161,1611.1,1611.0,2.9083]
[1744909768742,1.24168,1611.0,1610.9,4.87832575]
[1744909769134,4.44948,1611.0,1610.9,4.87832575]
[1744909769444,4.44948,1611.0,1610.9,0.00932575]
[1744909770344,4.44948,1611.0,1610.9,1.25108575]
[1744909770742,4.44948,1611.0,1610.9,0.00932575]
[1744909772445,4.44948,1611.0,1610.9,1.25108575]
[1744909772944,4.44948,1611.0,1610.9,11.12008575]
[1744909773341,4.44948,1611.0,1610.9,6.12008575]
[1744909773645,4.44948,1611.0,1610.9,4.87832575]
[1744909774142,4.44948,1611.0,1610.9,7.80102575]
[1744909774748,4.44948,1611.0,1610.9,9.04278575]
[1744909775839,1.24147,1611.3,1611.2,1.24145]
[1744909776044,1.24153,1611.2,1611.1,4.20113]
[1744909776242,1.24153,1611.2,1611.1,6.99683]
[1744909777138,1.24153,1611.2,1611.1,5.7553]
[1744909777339,4.13703,1611.2,1611.1,2.9596]
[1744909778345,4.13703,1611.2,1611.1,4.20121]
[1744909778641,4.13703,1611.2,1611.1,2.9596]
[1744909778847,1.24168,1611.0,1610.9,7.76272575]
[1744909779047,4.44948,1611.0,1610.9,6.12008575]
[1744909779347,4.44948,1611.0,1610.9,4.87832575]
[1744909779848,4.44948,1611.0,1610.9,9.00448575]
[1744909780049,4.44948,1611.0,1610.9,4.13548575]
[1744909780238,4.44948,1611.0,1610.9,0.00932575]
[1744909780441,1.24167,1611.1,1611.0,1.24168]
[1744909780749,1.24168,1611.0,1610.9,0.00932575]
[1744909780948,4.44948,1611.0,1610.9,0.00932575]
[1744909781748,4.44948,1611.0,1610.9,1.25108575]
[1744909782050,4.44948,1611.0,1610.9,0.00932575]
[1744909782250,4.44948,1611.0,1610.9,3.01532575]
[1744909782448,3.2078,1611.0,1610.9,3.01532575]
[1744909782745,4.44948,1611.0,1610.9,4.25708575]
[1744909783256,4.44948,1611.0,1610.9,3.01532575]
[1744909783550,4.44948,1611.0,1610.9,4.25708575]
[1744909783847,1.24168,1611.0,1610.9,3.01532575]
[1744909784048,1.24168,1611.0,1610.9,4.25708575]
[1744909784450,1.24168,1611.0,1610.9,3.01532575]
[1744909784637,1.24168,1611.0,1610.9,0.00932575]
[1744909785043,4.44948,1611.0,1610.9,0.00932575]
[1744909785349,4.44948,1611.0,1610.9,2.87722575]
[1744909786151,7.36448,1611.0,1610.9,4.11898575]
[1744909786346,7.36448,1611.0,1610.9,2.87722575]
[1744909786652,3.2078,1611.0,1610.9,4.11898575]
[1744909786842,4.44948,1611.0,1610.9,4.11898575]
[1744909787351,4.44948,1611.0,1610.9,2.87722575]
[1744909787545,4.44948,1611.0,1610.9,0.00932575]
[1744909787856,10.15298,1611.0,1610.9,0.00932575]
[1744909788439,10.15298,1611.0,1610.9,2.91302575]
[1744909788939,10.15298,1611.0,1610.9,0.00932575]
[1744909789351,12.89758,1611.0,1610.9,0.00932575]
[1744909790151,1.24222,1610.3,1610.2,8.12464086]
[1744909790353,4.45002,1610.3,1610.2,8.12464086]
[1744909790744,1.24222,1610.3,1610.2,9.36694086]
[1744909790951,1.24215,1610.4,1610.3,1.24216]
[1744909791150,1.24222,1610.3,1610.2,8.12464086]
[1744909791559,1.24222,1610.3,1610.2,12.99464086]
[1744909792050,4.45002,1610.3,1610.2,12.99464086]
[1744909792252,7.38672,1610.3,1610.2,12.99464086]
[1744909792458,4.17892,1610.3,1610.2,12.99464086]
[1744909792657,4.17892,1610.3,1610.2,8.12464086]
[1744909793557,1.25153575,1610.4,1610.3,1.24222]
[1744909793756,1.24222,1610.3,1610.2,9.36688086]
[1744909793956,0.00932575,1610.4,1610.2,9.36688086]
[1744909793957,1.25154575,1610.4,1610.3,1.24222]
[1744909794258,1.24203,1610.6,1610.5,1.24202]
[1744909794763,2.9628,1610.7,1610.4,5.7334]
[1744909794964,2.9628,1610.7,1610.4,2.9646]
[1744909794965,1.24207,1610.5,1610.4,2.9646]
[1744909795369,1.24215,1610.4,1610.3,6.11019]
[1744909795563,4.20493,1610.5,1610.4,1.24215]
[1744909796564,1.24215,1610.4,1610.3,6.11016]
[1744909796761,1.24222,1610.3,1610.2,2.7685]
[1744909797063,1.24222,1610.3,1610.1,4.02043575]
[1744909797064,1.2423,1610.2,1610.1,7.64712575]
[1744909797264,1.2423,1610.2,1610.1,1.25170575]
[1744909797462,4.20529,1610.3,1610.1,0.00932575]
[1744909797665,1.2423,1610.2,1610.1,1.25166575]
[1744909798159,1.2423,1610.2,1610.1,0.00932575]
[1744909798866,4.2053,1610.2,1610.1,1.25170575]
[1744909799167,4.2053,1610.2,1610.1,0.00932575]
[1744909800068,4.2053,1610.2,1610.1,1.25170575]
[1744909800467,4.05725,1610.3,1610.2,1.2423]
[1744909800666,1.2423,1610.2,1610.1,0.00932575]
[1744909800868,4.1746,1610.2,1610.1,0.00932575]
[1744909801368,7.3824,1610.2,1610.1,0.00932575]
[1744909802073,12.3824,1610.2,1610.1,0.00932575]
[1744909802365,7.3824,1610.2,1610.1,0.00932575]
[1744909802572,4.4501,1610.2,1610.1,0.00932575]
[1744909803667,7.348,1610.2,1610.1,0.00932575]
[1744909804067,4.4501,1610.2,1610.1,1.25170575]
[1744909804268,4.4501,1610.2,1610.1,0.00932575]
[1744909804668,1.24258,1609.9,1609.7,4.869]
[1744909804869,1.24245,1610.1,1610.0,1.24242]
[1744909805067,1.24245,1610.1,1610.0,1.24245]
[1744909805270,1.24245,1610.1,1610.0,6.11245]
[1744909805471,4.45014,1610.2,1610.1,1.24238]
[1744909805773,4.45014,1610.2,1610.1,3.97928]
[1744909805972,3.2078,1610.2,1610.1,8.97928]
[1744909806374,3.2078,1610.4,1610.3,1.24222]
[1744909806573,4.44995,1610.4,1610.3,6.11222]
[1744909806881,1.24215,1610.4,1610.3,6.11222]
[1744909807173,0.00932575,1610.6,1610.5,1.24207]
[1744909807668,1.25131575,1610.6,1610.5,1.24207]
[1744909807874,0.00932575,1610.6,1610.5,1.24207]
[1744909808373,0.00932575,1610.6,1610.5,4.44987]
[1744909808969,0.00932575,1610.6,1610.5,9.44987]
[1744909809171,3.2078,1611.0,1610.6,3.10481]
[1744909809378,1.2418,1610.9,1610.8,1.2418]
[1744909810276,1.25106575,1611.0,1610.9,1.24173]
[1744909810476,0.00932575,1611.0,1610.7,4.869]
[1744909810677,1.25105575,1611.0,1610.9,1.24176]
[1744909812072,1.24176,1610.9,1610.8,0.00932575]
[1744909812279,4.08436,1610.9,1610.8,0.00932575]
[1744909813279,3.10495,1610.7,1610.4,4.869]
[1744909813476,1.24207,1610.5,1610.4,6.11115]
[1744909813779,1.24206,1610.6,1610.5,1.24207]
[1744909813979,1.24207,1610.5,1610.4,6.11108]
[1744909814279,1.24222,1610.3,1610.2,94.1718]
[1744909814475,1.24222,1610.3,1610.2,8.0768]
[1744909814677,1.24222,1610.3,1610.2,3.2078]
[1744909814880,1.2423,1610.2,1610.1,1.25162575]
[1744909815777,1.2423,1610.2,1610.1,0.00932575]
[1744909815778,4.1996,1610.2,1610.1,0.00932575]
[1744909816468,2.9573,1610.2,1610.1,1.25170575]
[1744909816675,1.2423,1610.2,1610.1,1.25170575]
[1744909816871,3.2078,1610.3,1610.2,1.2423]
[1744909817068,1.24222,1610.4,1610.3,1.24222]
[1744909817276,1.24224,1610.3,1610.2,1.24224]
[1744909817785,1.2423,1610.2,1610.1,4.87832575]
[1744909818685,1.2423,1610.2,1610.1,0.00932575]
[1744909819080,1.2423,1610.2,1610.1,1.25170575]
[1744909819283,6.1034,1610.5,1610.1,5.00932575]
[1744909819484,1.24225,1610.3,1610.2,6.11125]
[1744909819985,1.2422,1610.4,1610.3,1.24219]
[1744909820177,1.24217,1610.4,1610.3,1.24216]
[1744909820888,1.24201,1610.6,1610.5,1.24199]
[1744909821591,1.2421,1610.5,1610.4,1.24209]
[1744909821883,1.24205,1610.6,1610.5,1.24204]
[1744909822781,1.24211,1610.5,1610.4,1.24209]
[1744909822983,4.44991,1610.5,1610.4,1.24209]
[1744909823390,1.24211,1610.5,1610.4,1.24209]
[1744909823784,1.24207,1610.5,1610.4,1.24209]
[1744909824284,1.24215,1610.4,1610.3,4.12757]
[1744909824490,1.24215,1610.4,1610.3,1.24217]
[1744909824693,1.24213,1610.5,1610.4,1.2421]
[1744909824890,3.99953,1610.5,1610.4,1.2421]
[1744909825087,5.9652,1610.5,1610.2,7.7354]
[1744909825292,1.24222,1610.3,1610.2,4.1086]
[1744909825504,1.2423,1610.2,1610.1,0.00932575]
[1744909825706,3.9997,1610.2,1610.1,0.00932575]
[1744909827208,3.9997,1610.2,1610.1,1.25170575]
[1744909827409,3.9997,1610.2,1610.1,0.00932575]
[1744909829611,1.2423,1610.2,1610.1,1.25170575]
[1744909829805,3.2078,1610.3,1610.2,1.2423]
[1744909830009,1.24222,1610.3,1610.2,4.1279]
[1744909830313,1.24202,1610.6,1610.5,1.24207]
[1744909830609,1.24204,1610.6,1610.5,1.24201]
[1744909830801,4.44977,1610.7,1610.6,1.24195]
[1744909831003,1.24197,1610.7,1610.6,1.24195]
[1744909831403,1.24197,1610.7,1610.6,4.12755]
[1744909832809,1.2419,1610.8,1610.7,1.24189]
[1744909833012,4.0326,1610.8,1610.7,1.24189]
[1744909834410,1.2419,1610.8,1610.7,1.24189]
[1744909834614,4.45887575,1611.0,1610.9,1.24176]
[1744909834911,0.00932575,1611.0,1610.9,1.24176]
[1744909835211,1.25100575,1611.0,1610.9,1.24176]
[1744909835412,4.05350575,1611.0,1610.9,1.24176]
[1744909835915,4.05350575,1611.0,1610.9,4.02266]
[1744909837305,1.25100575,1611.0,1610.9,4.02266]
[1744909838508,4.08240575,1611.0,1610.9,4.02266]
[1744909839017,1.25100575,1611.0,1610.9,4.02266]
[1744909839708,4.08240575,1611.0,1610.9,4.02266]
[1744909840116,2.84072575,1611.0,1610.9,4.02266]
[1744909840317,4.08240575,1611.0,1610.9,4.02266]
[1744909840515,0.00932575,1611.0,1610.9,4.02266]
[1744909841015,1.25100575,1611.0,1610.9,4.02266]
[1744909841217,4.08240575,1611.0,1610.9,4.02266]
[1744909842419,1.25100575,1611.0,1610.9,8.88766]
[1744909843619,0.00932575,1611.0,1610.9,8.88766]
[1744909844318,3.2078,1611.6,1610.9,18.85446]
[1744909844618,4.44905,1611.6,1611.5,1.2413]
[1744909845215,1.24125,1611.6,1611.5,3.9599]
[1744909845419,4.44905,1611.6,1611.5,2.7186]
[1744909845825,1.24125,1611.6,1611.5,3.9599]
[1744909846320,1.2413,1611.5,1611.4,4.87432575]
[1744909846618,4.44907,1611.6,1611.5,1.2413]
[1744909846820,7.19827,1611.6,1611.5,3.9599]
[1744909847023,4.45829575,1611.7,1611.6,1.24122]
[1744909847221,7.20749575,1611.7,1611.6,1.24122]
[1744909847421,0.00932575,1611.7,1611.6,1.24122]
[1744909847612,0.00932575,1611.7,1611.6,4.15702]
[1744909848013,2.8226,1612.3,1612.2,1.24076]
[1744909848220,14.79410833,1612.4,1612.3,1.24068]
[1744909848422,16.03477833,1612.4,1612.3,1.24068]
[1744909848615,12.01530833,1612.4,1612.3,1.24068]
[1744909848924,12.01530833,1612.8,1612.7,1.24037]
[1744909849124,12.01530833,1612.8,1612.7,4.864]
[1744909849125,13.25560833,1612.8,1612.7,4.864]
[1744909849328,13.25560833,1612.8,1612.7,6.10437]
[1744909849530,1.24037,1612.7,1612.6,0.00932575]
[1744909849829,7.22697,1612.7,1612.6,0.00932575]
[1744909850124,17.99797,1612.7,1612.6,0.00932575]
[1744909851227,12.99797,1612.7,1612.6,0.00932575]
[1744909851521,19.85871,1612.7,1612.3,1.24063]
[1744909851723,1.24051,1612.6,1612.4,2.9812]
[1744909851923,4.16191,1612.6,1612.4,4.22178]
[1744909852130,4.16191,1612.6,1612.4,9.08478]
[1744909852131,3.2078,1612.5,1612.4,9.08478]
[1744909852326,4.44833,1612.5,1612.4,7.8442]
[1744909852831,1.24061,1612.4,1612.3,0.00932575]
[1744909853127,4.16201,1612.4,1612.3,0.00932575]
[1744909853327,9.16201,1612.4,1612.3,0.00932575]
[1744909854129,1.24091,1612.0,1611.9,2.737]
[1744909854333,3.10192,1612.2,1611.8,4.862]
[1744909854524,3.2078,1612.3,1612.1,1.2408]
[1744909854725,1.24076,1612.3,1612.2,2.737]
[1744909855030,3.2078,1612.3,1612.0,1.24084]
[1744909855220,3.2078,1612.3,1612.1,2.74632575]
[1744909855420,1.24076,1612.2,1612.1,2.74632575]
[1744909855617,6.1172,1612.3,1612.1,3.98712575]
[1744909856030,0.00932575,1612.4,1612.2,1.24076]
[1744909856232,4.4485,1612.3,1612.2,3.97776]
[1744909856528,4.4485,1612.3,1612.2,2.737]
[1744909857030,0.00932575,1612.4,1612.2,7.737]
[1744909857224,0.00932575,1612.4,1612.3,1.24068]
[1744909857620,0.00932575,1612.4,1612.3,6.24068]
[1744909858830,0.00932575,1612.4,1612.2,7.595]
[1744909859138,0.00932575,1612.4,1612.3,1.24068]
[1744909859528,0.00932575,1612.4,1612.3,6.24068]
[1744909860334,3.2078,1612.6,1612.2,2.737]
[1744909860535,1.24065,1612.4,1612.3,1.24066]
[1744909860738,6.30897,1612.6,1612.2,8.83471]
[1744909860739,1.24068,1612.3,1612.2,8.83471]
[1744909861033,1.24076,1612.2,1612.1,0.00932575]
[1744909861239,4.12556,1612.2,1612.1,0.00932575]
[1744909861420,9.12556,1612.2,1612.1,5.75e-06]
[1744909862736,9.11285782,1612.2,1612.1,5.75e-06]
[1744909862937,9.22692055,1612.2,1612.1,5.75e-06]
[1744909863234,9.84827655,1612.2,1612.1,5.75e-06]
[1744909863431,9.34098336,1612.2,1612.1,5.75e-06]
[1744909864537,9.34098158,1612.2,1612.1,5.75e-06]
[1744909865436,4.22692055,1612.2,1612.1,5.75e-06]
[1744909865638,9.22692055,1612.2,1612.1,5.75e-06]
[1744909867438,3.20779425,1612.1,1611.1,1.24157]
[1744909867641,3.2078,1611.7,1611.3,3.10364]
[1744909867938,1.24123,1611.6,1611.4,2.9462]
[1744909868142,1.24122,1611.6,1611.5,4.858]
[1744909868328,1.24153,1611.2,1611.1,2.9623]
[1744909868529,4.44933,1611.2,1611.1,2.9623]
[1744909868935,4.44933,1611.2,1611.0,4.86732575]
[1744909868936,1.24161,1611.1,1611.0,0.00932575]
[1744909869932,0.00932575,1611.3,1611.0,9.23635575]
[1744909870129,1.24161,1611.1,1611.0,2.99472575]
[1744909870541,1.24161,1611.1,1611.0,7.99472575]
[1744909870738,1.24157,1611.2,1611.0,7.99472575]
[1744909870945,0.00932575,1611.3,1611.2,1.24153]
[1744909871136,0.00932575,1611.3,1611.2,4.22693]
[1744909871335,0.00932575,1611.3,1611.2,9.22693]
[1744909871634,1.25077575,1611.3,1611.2,7.9854]
[1744909871943,1.25077575,1611.3,1611.2,2.9854]
[1744909872843,0.00932575,1611.3,1611.2,9.22693]
[1744909873139,6.31012,1612.0,1611.3,3.10353]
[1744909873345,1.24128,1611.6,1611.4,11.91291]